[Event "Gibraltar Challengers A 2020"]
[Site "Caleta"]
[Date "2020.01.21"]
[Round "1.10"]
[White "Cannon, Richard J"]
[Black "Galvan, Jesus"]
[Result "0-1"]
[ECO "B23"]
[WhiteElo "1990"]
[BlackElo "2180"]
[Annotator "ChessBase"]
[PlyCount "74"]
[EventDate "2020.01.20"]
[EventType "swiss"]
[EventCountry "GGB"]
[SourceTitle "playchess.com"]
[Source "ChessBase"]
[SourceQuality "1"]
[TimeControl "6600+10"]

1. e4 {[%emt 0:01:11]} c5 {[%emt 0:00:42]} 2. Nc3 {[%emt 0:00:07]} Nc6 {[%emt 0:00:09]} 3. Nge2 {[%emt 0:00:08]} Nf6 {[%emt 0:01:20]} 4. d4 {[%emt 0:00:20]} d5 {[%emt 0:00:38]} 5. exd5 {[%emt 0:03:42]} Nxd5 {[%emt 0:02:52]} 6. dxc5 {[%emt 0:00:17]} e6 {[%emt 0:00:21]} 7. Nxd5 {[%emt 0:01:08]} exd5 {[%emt 0:00:02]} 8. Be3 {[%emt 0:00:18]} Bg4 {[%emt 0:01:35]} 9. f3 {[%emt 0:00:39]} Qe7 {[%emt 0:17:03]} 10. Kf2 {[%emt 0:06:38]} Be6 {[%emt 0:05:36]} 11. c3 {[%emt 0:01:34]} a6 {[%emt 0:04:46]} 12. b4 {[%emt 0:12:34]} g6 {[%emt 0:00:28]} 13. Nd4 {[%emt 0:01:17]} Ne5 {[%emt 0:00:12]} 14. Nxe6 {[%emt 0:00:57]} Qxe6 {[%emt 0:02:07]} 15. Bd4 {[%emt 0:00:45]} Bg7 {[%emt 0:00:52]} 16. Qa4+ {[%emt 0:01:57]} Kf8 {[%emt 0:01:53]} 17. Re1 {[%emt 0:03:35]} Qf5 {[%emt 0:00:18]} 18. Qd1 {[%emt 0:10:18]} Re8 {[%emt 0:21:54]} 19. h3 {[%emt 0:02:26]} h5 {[%emt 0:02:33]} 20. g3 {[%emt 0:15:47]} h4 {[%emt 0:06:14]} 21. g4 {[%emt 0:03:36]} Qf4 {[%emt 0:01:22]} 22. Rg1 {[%emt 0:00:16]} Bh6 {[%emt 0:04:20]} 23. Rg2 {[%emt 0:22:29]} Qf6 {[%emt 0:02:01]} 24. Be3 {[%emt 0:04:16]} Bf4 {[%emt 0:01:46]} 25. Bxf4 {[%emt 0:01:55]} Qxf4 {[%emt 0:00:05]} 26. Qxd5 {[%emt 0:00:11]} Kg7 {[%emt 0:00:33]} 27. Be2 {[%emt 0:03:00]} Rd8 {[%emt 0:02:07]} 28. Qe4 {[%emt 0:05:13]} Qxe4 {[%emt 0:00:46]} 29. fxe4 {[%emt 0:00:04]} Rd2 {[%emt 0:00:03]} 30. Ke3 {[%emt 0:01:35]} Rhd8 {[%emt 0:00:44]} 31. a4 {[%emt 0:01:44]} Rc2 {[%emt 0:02:24]} 32. Rgg1 {[%emt 0:02:43]} Rxc3+ {[%emt 0:00:09]} 33. Kf4 {[%emt 0:00:24]} Nc6 {[%emt 0:01:48]} 34. b5 {[%emt 0:00:19]} axb5 {[%emt 0:00:32]} 35. axb5 {[%emt 0:00:03]} Nd4 {[%emt 0:00:03]} 36. c6 {[%emt 0:00:32]} Ne6+ {[%emt 0:00:11]} 37. Ke5 {[%emt 0:00:20]} Rc5# {[%emt 0:00:09]} 0-1

[Event "Gibraltar Challengers A 2020"]
[Site "Caleta"]
[Date "2020.01.21"]
[Round "1.11"]
[White "Tejaswini, Sagar"]
[Black "Alami, Halim"]
[Result "0-1"]
[ECO "C90"]
[WhiteElo "2180"]
[BlackElo "1987"]
[Annotator "ChessBase"]
[PlyCount "132"]
[EventDate "2020.01.20"]
[EventType "swiss"]
[EventCountry "GGB"]
[SourceTitle "playchess.com"]
[Source "ChessBase"]
[SourceQuality "1"]
[TimeControl "6600+10"]

1. e4 {[%emt 0:00:00]} e5 {[%emt 0:25:56]} 2. Nf3 {[%emt 0:00:06]} Nc6 {[%emt 0:00:25]} 3. Bb5 {[%emt 0:00:12]} a6 {[%emt 0:00:26]} 4. Ba4 {[%emt 0:00:11]} Nf6 {[%emt 0:00:10]} 5. O-O {[%emt 0:00:11]} Be7 {[%emt 0:00:45]} 6. Re1 {[%emt 0:00:12]} b5 {[%emt 0:00:54]} 7. Bb3 {[%emt 0:00:11]} d6 {[%emt 0:00:19]} 8. c3 {[%emt 0:00:24]} Na5 {[%emt 0:00:49]} 9. Bc2 {[%emt 0:01:04]} c5 {[%emt 0:00:18]} 10. d4 {[%emt 0:03:36]} cxd4 {[%emt 0:01:37]} 11. cxd4 {[%emt 0:00:37]} Qc7 {[%emt 0:00:33]} 12. Nc3 {[%emt 0:06:49]} O-O {[%emt 0:06:46]} 13. Bg5 {[%emt 0:06:00]} Bb7 {[%emt 0:02:04]} 14. Rc1 {[%emt 0:05:44]} Rad8 {[%emt 0:31:17]} 15. Ne2 {[%emt 0:06:29]} Qb8 {[%emt 0:00:37]} 16. Ng3 {[%emt 0:02:53]} g6 {[%emt 0:00:29]} 17. b3 {[%emt 0:06:18]} Rfe8 {[%emt 0:00:32]} 18. d5 {[%emt 0:04:29]} Bc8 {[%emt 0:00:38]} 19. Qd2 {[%emt 0:00:48]} Nb7 {[%emt 0:00:58]} 20. b4 {[%emt 0:02:11]} Bd7 {[%emt 0:02:07]} 21. h3 {[%emt 0:06:51]} Rc8 {[%emt 0:01:08]} 22. Nh2 {[%emt 0:04:33]} a5 {[%emt 0:03:15]} 23. a3 {[%emt 0:03:47]} Qa8 {[%emt 0:02:08]} 24. f4 {[%emt 0:06:28]} axb4 {[%emt 0:01:06]} 25. axb4 {[%emt 0:01:56]} Qa3 {[%emt 0:00:26]} 26. Nf3 {[%emt 0:07:05]} Rc4 {[%emt 0:06:03]} 27. Bd3 {[%emt 0:06:53]} Rxc1 {[%emt 0:01:52]} 28. Rxc1 {[%emt 0:00:38]} Rc8 {[%emt 0:00:03]} 29. Rxc8+ {[%emt 0:06:40]} Bxc8 {[%emt 0:00:02]} 30. Bxb5 {[%emt 0:03:02]} Bxh3 {[%emt 0:01:54]} 31. fxe5 {[%emt 0:05:17]} dxe5 {[%emt 0:00:43]} 32. Qd3 {[%emt 0:03:01]} Qa7+ {[%emt 0:03:25]} 33. Be3 {[%emt 0:02:57]} Qa1+ {[%emt 0:00:05]} 34. Qf1 {[%emt 0:01:31]} Qxf1+ {[%emt 0:01:35]} 35. Kxf1 {[%emt 0:00:09]} Bd7 {[%emt 0:00:13]} 36. Ba6 {[%emt 0:01:59]} Ng4 {[%emt 0:01:20]} 37. Bd2 {[%emt 0:02:00]} Nd6 {[%emt 0:00:06]} 38. Ke2 {[%emt 0:00:39]} f5 {[%emt 0:01:16]} 39. Bc3 {[%emt 0:01:20]} Bf6 {[%emt 0:00:07]} 40. Bd3 {[%emt 0:00:33]} Kf7 {[%emt 0:01:38]} 41. Bc2 {[%emt 0:00:21]} f4 {[%emt 0:00:54]} 42. Nh1 {[%emt 0:00:26]} Bb5+ {[%emt 0:00:27]} 43. Bd3 {[%emt 0:00:11]} Nxe4 {[%emt 0:01:37]} 44. Bb2 {[%emt 0:00:02]} Nd6 {[%emt 0:00:45]} 45. Bxb5 {[%emt 0:00:10]} Nxb5 {[%emt 0:00:15]} 46. Nd2 {[%emt 0:00:26]} Ne3 {[%emt 0:00:25]} 47. Nf2 {[%emt 0:00:11]} Nxd5 {[%emt 0:00:29]} 48. Ng4 {[%emt 0:00:03]} Nxb4 {[%emt 0:02:16]} 49. Bxe5 {[%emt 0:00:04]} Bxe5 {[%emt 0:00:26]} 50. Nxe5+ {[%emt 0:00:01]} Ke6 {[%emt 0:00:01]} 51. Nef3 {[%emt 0:00:18]} Nc3+ {[%emt 0:00:17]} 52. Kf1 {[%emt 0:00:13]} Kf5 {[%emt 0:00:04]} 53. Nd4+ {[%emt 0:00:13]} Kg4 {[%emt 0:00:03]} 54. Ne6 {[%emt 0:00:12]} h5 {[%emt 0:00:51]} 55. Nf3 {[%emt 0:00:11]} Nd3 {[%emt 0:00:10]} 56. Nf8 {[%emt 0:00:04]} g5 {[%emt 0:00:54]} 57. Nh7 {[%emt 0:00:02]} Ne4 {[%emt 0:00:29]} 58. Ke2 {[%emt 0:00:02]} Ndc5 {[%emt 0:00:11]} 59. Kf1 {[%emt 0:00:16]} h4 {[%emt 0:00:17]} 60. Nh2+ {[%emt 0:00:26]} Kf5 {[%emt 0:00:04]} 61. Nf3 {[%emt 0:00:17]} Ne6 {[%emt 0:00:14]} 62. Nhxg5 {[%emt 0:00:08]} N6xg5 {[%emt 0:00:50]} 63. Nxh4+ {[%emt 0:00:02]} Kf6 {[%emt 0:00:36]} 64. Ke2 {[%emt 0:00:04]} Ng3+ {[%emt 0:00:09]} 65. Kd3 {[%emt 0:00:18]} Nf5 {[%emt 0:00:21]} 66. Ke2 {[%emt 0:00:20]} Nxh4 {[%emt 0:00:04]} 0-1

[Event "Gibraltar Challengers A 2020"]
[Site "Caleta"]
[Date "2020.01.21"]
[Round "1.12"]
[White "Paul, Nathanael"]
[Black "Ask, Josef"]
[Result "0-1"]
[ECO "A45"]
[WhiteElo "1987"]
[BlackElo "2174"]
[Annotator "ChessBase"]
[PlyCount "100"]
[EventDate "2020.01.20"]
[EventType "swiss"]
[EventCountry "GGB"]
[SourceTitle "playchess.com"]
[Source "ChessBase"]
[SourceQuality "1"]
[TimeControl "6600+10"]

1. d4 {[%emt 0:00:00]} Nf6 {[%emt 0:00:09]} 2. Bf4 {[%emt 0:00:00]} g6 {[%emt 0:00:29]} 3. Nc3 {[%emt 0:00:33]} c5 {[%emt 0:04:11]} 4. e3 {[%emt 0:02:57]} Bg7 {[%emt 0:06:00]} 5. h4 {[%emt 0:00:35]} Qa5 {[%emt 0:05:13]} 6. Qd2 {[%emt 0:02:11]} a6 {[%emt 0:04:38]} 7. Be2 {[%emt 0:10:52]} d6 {[%emt 0:05:46]} 8. h5 {[%emt 0:04:09]} gxh5 {[%emt 0:01:28]} 9. d5 {[%emt 0:09:18]} b5 {[%emt 0:04:49]} 10. f3 {[%emt 0:00:12]} Bb7 {[%emt 0:03:00]} 11. e4 {[%emt 0:00:49]} Nbd7 {[%emt 0:00:58]} 12. Nh3 {[%emt 0:03:08]} c4 {[%emt 0:05:03]} 13. Nd1 {[%emt 0:04:56]} Qc7 {[%emt 0:03:19]} 14. Ne3 {[%emt 0:10:30]} c3 {[%emt 0:04:39]} 15. Qxc3 {[%emt 0:00:06]} Qxc3+ {[%emt 0:01:07]} 16. bxc3 {[%emt 0:00:07]} Ng8 {[%emt 0:02:08]} 17. O-O-O {[%emt 0:04:19]} Bxc3 {[%emt 0:02:22]} 18. Nf5 {[%emt 0:00:56]} Ne5 {[%emt 0:01:56]} 19. Bd2 {[%emt 0:01:49]} Bxd2+ {[%emt 0:01:41]} 20. Kxd2 {[%emt 0:00:29]} Rc8 {[%emt 0:02:18]} 21. Nf4 {[%emt 0:00:54]} Nf6 {[%emt 0:01:53]} 22. Nxh5 {[%emt 0:05:45]} Nfd7 {[%emt 0:01:29]} 23. Ne3 {[%emt 0:07:57]} Nb6 {[%emt 0:03:38]} 24. Ng7+ {[%emt 0:08:47]} Kf8 {[%emt 0:01:50]} 25. Ngf5 {[%emt 0:00:35]} Na4 {[%emt 0:02:51]} 26. c4 {[%emt 0:17:21]} bxc4 {[%emt 0:02:10]} 27. f4 {[%emt 0:00:07]} c3+ {[%emt 0:01:20]} 28. Kc2 {[%emt 0:00:01]} Nd7 {[%emt 0:02:11]} 29. Rd4 {[%emt 0:00:44]} Nac5 {[%emt 0:01:43]} 30. Nc4 {[%emt 0:03:42]} Rc7 {[%emt 0:02:08]} 31. e5 {[%emt 0:03:42]} dxe5 {[%emt 0:02:31]} 32. fxe5 {[%emt 0:00:04]} e6 {[%emt 0:00:50]} 33. d6 {[%emt 0:01:21]} Rc8 {[%emt 0:00:22]} 34. Ne7 {[%emt 0:00:20]} Rb8 {[%emt 0:01:02]} 35. Bf3 {[%emt 0:00:02]} Ke8 {[%emt 0:06:04]} 36. Kxc3 {[%emt 0:00:59]} Na4+ {[%emt 0:02:51]} 37. Kc2 {[%emt 0:00:02]} Nac5 {[%emt 0:01:19]} 38. Bxb7 {[%emt 0:01:08]} Rxb7 {[%emt 0:00:14]} 39. Rf4 {[%emt 0:00:29]} Rb4 {[%emt 0:03:28]} 40. g3 {[%emt 0:00:41]} Ra4 {[%emt 0:00:49]} 41. a3 {[%emt 0:00:30]} f6 {[%emt 0:01:05]} 42. exf6 {[%emt 0:01:08]} Kf7 {[%emt 0:00:18]} 43. Nc6 {[%emt 0:00:46]} Kf8 {[%emt 0:02:11]} 44. f7 {[%emt 0:01:32]} h5 {[%emt 0:01:05]} 45. Nd8 {[%emt 0:00:36]} e5 {[%emt 0:01:19]} 46. Rfh4 {[%emt 0:00:09]} e4 {[%emt 0:00:29]} 47. Rb1 {[%emt 0:00:14]} Rxc4+ {[%emt 0:00:11]} 48. Kd1 {[%emt 0:00:09]} Rd4+ {[%emt 0:00:19]} 49. Ke2 {[%emt 0:00:02]} Rxd6 {[%emt 0:00:13]} 50. Rf4 {[%emt 0:00:07]} Kg7 {[%emt 0:03:21]} 0-1

[Event "Gibraltar Challengers A 2020"]
[Site "Caleta"]
[Date "2020.01.21"]
[Round "1.13"]
[White "Zulkipli, Zaidan"]
[Black "Herzwurm, Robert"]
[Result "1-0"]
[ECO "D05"]
[WhiteElo "2174"]
[BlackElo "1979"]
[Annotator "ChessBase"]
[PlyCount "49"]
[EventDate "2020.01.20"]
[EventType "swiss"]
[EventCountry "GGB"]
[SourceTitle "playchess.com"]
[Source "ChessBase"]
[SourceQuality "1"]
[TimeControl "6600+10"]

1. b3 {[%emt 0:01:06]} d5 {[%emt 0:01:33]} 2. Bb2 {[%emt 0:03:15]} Nf6 {[%emt 0:01:04]} 3. Nf3 {[%emt 0:03:19]} e6 {[%emt 0:02:18]} 4. e3 {[%emt 0:03:34]} c5 {[%emt 0:01:07]} 5. Be2 {[%emt 0:03:28]} Nc6 {[%emt 0:00:32]} 6. O-O {[%emt 0:02:15]} Bd6 {[%emt 0:01:52]} 7. d4 {[%emt 0:00:40]} O-O {[%emt 0:02:16]} 8. c4 {[%emt 0:05:02]} Qe7 {[%emt 0:15:54]} 9. Nc3 {[%emt 0:01:55]} Rd8 {[%emt 0:02:14]} 10. cxd5 {[%emt 0:03:18]} exd5 {[%emt 0:01:35]} 11. Nb5 {[%emt 0:00:29]} Bb8 {[%emt 0:03:08]} 12. dxc5 {[%emt 0:06:21]} Ne4 {[%emt 0:05:37]} 13. Rc1 {[%emt 0:19:54]} a5 {[%emt 0:24:43]} 14. Nbd4 {[%emt 0:25:47]} Nb4 {[%emt 0:22:34]} 15. a3 {[%emt 0:04:18]} Na6 {[%emt 0:00:39]} 16. c6 {[%emt 0:00:05]} Rd6 {[%emt 0:11:24]} 17. cxb7 {[%emt 0:07:04]} Qxb7 {[%emt 0:00:18]} 18. Nb5 {[%emt 0:01:39]} Rh6 {[%emt 0:04:13]} 19. Qd4 {[%emt 0:02:07]} f6 {[%emt 0:01:41]} 20. Rxc8+ {[%emt 0:03:38]} Qxc8 {[%emt 0:00:07]} 21. Qxd5+ {[%emt 0:00:05]} Kh8 {[%emt 0:00:09]} 22. Qxe4 {[%emt 0:00:04]} Nc5 {[%emt 0:00:48]} 23. Qd5 {[%emt 0:04:06]} Ne6 {[%emt 0:04:09]} 24. Rc1 {[%emt 0:02:49]} Qe8 {[%emt 0:00:50]} 25. g3 {[%emt 0:02:29]} 1-0

[Event "Gibraltar Challengers A 2020"]
[Site "Caleta"]
[Date "2020.01.21"]
[Round "1.14"]
[White "Manukonda Arun"]
[Black "Mihajlov, Svetoslav"]
[Result "0-1"]
[ECO "E38"]
[WhiteElo "1959"]
[BlackElo "2173"]
[Annotator "ChessBase"]
[PlyCount "88"]
[EventDate "2020.01.20"]
[EventType "swiss"]
[EventCountry "GGB"]
[SourceTitle "playchess.com"]
[Source "ChessBase"]
[SourceQuality "1"]
[TimeControl "6600+10"]

1. d4 {[%emt 0:00:00]} Nf6 {[%emt 0:00:02]} 2. c4 {[%emt 0:00:03]} e6 {[%emt 0:00:13]} 3. Nc3 {[%emt 0:00:07]} Bb4 {[%emt 0:00:07]} 4. Qc2 {[%emt 0:00:04]} c5 {[%emt 0:00:07]} 5. dxc5 {[%emt 0:00:02]} Bxc5 {[%emt 0:00:06]} 6. Nf3 {[%emt 0:01:02]} Qb6 {[%emt 0:00:17]} 7. e3 {[%emt 0:00:58]} Qc7 {[%emt 0:00:06]} 8. a3 {[%emt 0:00:42]} b6 {[%emt 0:01:19]} 9. b4 {[%emt 0:01:47]} Be7 {[%emt 0:01:42]} 10. Nb5 {[%emt 0:05:43]} Qd8 {[%emt 0:02:53]} 11. Bb2 {[%emt 0:05:57]} a6 {[%emt 0:00:16]} 12. Nbd4 {[%emt 0:10:28]} Bb7 {[%emt 0:01:47]} 13. Be2 {[%emt 0:07:26]} Qc7 {[%emt 0:00:44]} 14. O-O {[%emt 0:00:50]} d6 {[%emt 0:01:07]} 15. Ng5 {[%emt 0:02:42]} Qc8 {[%emt 0:17:02]} 16. Bd3 {[%emt 0:08:34]} h6 {[%emt 0:04:41]} 17. Nxf7 {[%emt 0:17:47]} Kxf7 {[%emt 0:00:07]} 18. Nxe6 {[%emt 0:00:01]} Nbd7 {[%emt 0:13:56]} 19. Bg6+ {[%emt 0:04:11]} Kg8 {[%emt 0:00:08]} 20. Nd4 {[%emt 0:17:07]} Nf8 {[%emt 0:06:14]} 21. Bf5 {[%emt 0:00:40]} Qe8 {[%emt 0:01:23]} 22. f4 {[%emt 0:05:14]} Bd8 {[%emt 0:09:06]} 23. Rae1 {[%emt 0:02:42]} Be4 {[%emt 0:04:59]} 24. Qd2 {[%emt 0:02:40]} g6 {[%emt 0:01:22]} 25. Bh3 {[%emt 0:00:29]} Rh7 {[%emt 0:02:36]} 26. Nb3 {[%emt 0:02:03]} Qc6 {[%emt 0:02:53]} 27. Rc1 {[%emt 0:00:54]} Rf7 {[%emt 0:01:42]} 28. Nd4 {[%emt 0:01:24]} Qe8 {[%emt 0:01:16]} 29. Ne2 {[%emt 0:02:15]} Bb7 {[%emt 0:08:32]} 30. Qc3 {[%emt 0:04:21]} Bc8 {[%emt 0:05:12]} 31. Rf3 {[%emt 0:00:22]} Rh7 {[%emt 0:06:28]} 32. Qd4 {[%emt 0:01:15]} Bb7 {[%emt 0:02:21]} 33. Rg3 {[%emt 0:02:01]} Ne4 {[%emt 0:00:47]} 34. c5 {[%emt 0:01:50]} Nxg3 {[%emt 0:01:47]} 35. Nxg3 {[%emt 0:00:08]} dxc5 {[%emt 0:01:23]} 36. bxc5 {[%emt 0:00:04]} bxc5 {[%emt 0:00:44]} 37. Rxc5 {[%emt 0:00:11]} Bb6 {[%emt 0:01:33]} 38. Qc4+ {[%emt 0:01:54]} Qf7 {[%emt 0:00:26]} 39. Qc3 {[%emt 0:00:25]} Bxc5 {[%emt 0:02:47]} 40. Qxc5 {[%emt 0:00:00]} Qc7 {[%emt 0:00:14]} 41. Qd4 {[%emt 0:00:11]} Rd8 {[%emt 0:00:18]} 42. Qf6 {[%emt 0:00:13]} Rd1+ {[%emt 0:01:10]} 43. Kf2 {[%emt 0:00:00]} Qd6 {[%emt 0:01:20]} 44. Qc3 {[%emt 0:00:13]} Qd2+ {[%emt 0:00:27]} 0-1

[Event "Gibraltar Challengers A 2020"]
[Site "Caleta"]
[Date "2020.01.21"]
[Round "1.15"]
[White "Hristodorescu, Daniel"]
[Black "Perez Ruiz, Santiago"]
[Result "1-0"]
[ECO "C70"]
[WhiteElo "2172"]
[BlackElo "1953"]
[Annotator "ChessBase"]
[PlyCount "85"]
[EventDate "2020.01.20"]
[EventType "swiss"]
[EventCountry "GGB"]
[SourceTitle "playchess.com"]
[Source "ChessBase"]
[SourceQuality "1"]
[TimeControl "6600+10"]

1. e4 {[%emt 0:00:00]} e5 {[%emt 0:00:16]} 2. Nf3 {[%emt 0:00:04]} Nc6 {[%emt 0:00:08]} 3. Bb5 {[%emt 0:00:33]} a6 {[%emt 0:00:34]} 4. Ba4 {[%emt 0:00:07]} b5 {[%emt 0:01:29]} 5. Bb3 {[%emt 0:00:09]} Be7 {[%emt 0:02:30]} 6. a4 {[%emt 0:04:12]} Bb7 {[%emt 0:02:41]} 7. Nc3 {[%emt 0:01:39]} Nf6 {[%emt 0:02:56]} 8. d3 {[%emt 0:00:57]} b4 {[%emt 0:03:59]} 9. Ne2 {[%emt 0:05:15]} d5 {[%emt 0:06:29]} 10. exd5 {[%emt 0:00:27]} Nxd5 {[%emt 0:00:06]} 11. O-O {[%emt 0:00:25]} O-O {[%emt 0:04:41]} 12. a5 {[%emt 0:01:35]} Kh8 {[%emt 0:01:46]} 13. Ng3 {[%emt 0:01:11]} g6 {[%emt 0:04:53]} 14. Bh6 {[%emt 0:02:09]} Re8 {[%emt 0:00:08]} 15. Re1 {[%emt 0:02:25]} f6 {[%emt 0:09:17]} 16. d4 {[%emt 0:02:02]} Nxd4 {[%emt 0:02:28]} 17. Nxd4 {[%emt 0:00:16]} exd4 {[%emt 0:00:06]} 18. Qxd4 {[%emt 0:01:10]} c5 {[%emt 0:02:32]} 19. Qe4 {[%emt 0:25:39]} Bf8 {[%emt 0:07:05]} 20. Qxe8 {[%emt 0:01:46]} Qxe8 {[%emt 0:00:10]} 21. Rxe8 {[%emt 0:00:07]} Rxe8 {[%emt 0:00:04]} 22. Bxf8 {[%emt 0:00:06]} Rxf8 {[%emt 0:00:15]} 23. Rd1 {[%emt 0:10:36]} Nf4 {[%emt 0:02:00]} 24. f3 {[%emt 0:00:13]} h5 {[%emt 0:07:34]} 25. h4 {[%emt 0:01:12]} Bc6 {[%emt 0:04:52]} 26. Bc4 {[%emt 0:00:27]} g5 {[%emt 0:06:14]} 27. Rd6 {[%emt 0:00:42]} Bb5 {[%emt 0:02:06]} 28. Bxb5 {[%emt 0:01:25]} axb5 {[%emt 0:00:04]} 29. a6 {[%emt 0:01:32]} gxh4 {[%emt 0:05:11]} 30. Nf5 {[%emt 0:01:21]} Ra8 {[%emt 0:03:15]} 31. Rxf6 {[%emt 0:03:43]} b3 {[%emt 0:00:34]} 32. cxb3 {[%emt 0:00:51]} Nd3 {[%emt 0:01:44]} 33. Nxh4 {[%emt 0:13:00]} Nxb2 {[%emt 0:00:20]} 34. Rh6+ {[%emt 0:00:51]} Kg7 {[%emt 0:00:28]} 35. Nf5+ {[%emt 0:00:52]} Kf7 {[%emt 0:00:18]} 36. Rb6 {[%emt 0:02:24]} c4 {[%emt 0:01:14]} 37. Nd6+ {[%emt 0:00:25]} Ke7 {[%emt 0:01:01]} 38. Nxb5 {[%emt 0:00:07]} cxb3 {[%emt 0:00:28]} 39. Rb7+ {[%emt 0:00:56]} Kd8 {[%emt 0:00:57]} 40. Nc7 {[%emt 0:00:53]} Rc8 {[%emt 0:00:51]} 41. a7 {[%emt 0:00:24]} Nc4 {[%emt 0:01:41]} 42. Ne6+ {[%emt 0:00:43]} Ke8 {[%emt 0:00:12]} 43. Rb8 {[%emt 0:01:04]} 1-0

[Event "Gibraltar Challengers A 2020"]
[Site "Caleta"]
[Date "2020.01.21"]
[Round "1.16"]
[White "Adewole, Adeyinka"]
[Black "Nebel, Jens"]
[Result "0-1"]
[ECO "E70"]
[WhiteElo "1941"]
[BlackElo "2168"]
[Annotator "ChessBase"]
[PlyCount "47"]
[EventDate "2020.01.20"]
[EventType "swiss"]
[EventCountry "GGB"]
[SourceTitle "playchess.com"]
[Source "ChessBase"]
[SourceQuality "1"]
[TimeControl "6600+10"]

1. c4 {[%emt 0:00:06]} Nf6 {[%emt 0:00:01]} 2. Nc3 {[%emt 0:00:15]} g6 {[%emt 0:00:14]} 3. e4 {[%emt 0:00:31]} d6 {[%emt 0:01:14]} 4. d4 {[%emt 0:00:16]} Bg7 {[%emt 0:00:16]} 5. Bg5 {[%emt 0:00:56]} O-O {[%emt 0:01:12]} 6. Qd2 {[%emt 0:00:13]} c5 {[%emt 0:00:42]} 7. d5 {[%emt 0:13:56]} Re8 {[%emt 0:02:49]} 8. f4 {[%emt 0:03:52]} e6 {[%emt 0:03:36]} 9. dxe6 {[%emt 0:08:29]} Rxe6 {[%emt 0:09:22]} 10. O-O-O {[%emt 0:04:44]} Qe8 {[%emt 0:05:52]} 11. Bxf6 {[%emt 0:03:19]} Bxf6 {[%emt 0:00:27]} 12. Nb5 {[%emt 0:01:10]} Qe7 {[%emt 0:06:06]} 13. Nxd6 {[%emt 0:03:15]} Nc6 {[%emt 0:00:11]} 14. e5 {[%emt 0:02:49]} Rxe5 {[%emt 0:02:43]} 15. Ne8 {[%emt 0:02:02]} Re4 {[%emt 0:04:21]} 16. Nxf6+ {[%emt 0:03:51]} Qxf6 {[%emt 0:00:03]} 17. g3 {[%emt 0:01:18]} Bg4 {[%emt 0:01:32]} 18. Qg2 {[%emt 0:09:58]} Rae8 {[%emt 0:02:13]} 19. Bd3 {[%emt 0:11:40]} Re3 {[%emt 0:00:45]} 20. Nh3 {[%emt 0:00:21]} Bf3 {[%emt 0:03:07]} 21. Qd2 {[%emt 0:02:23]} Nb4 {[%emt 0:03:35]} 22. Bb1 {[%emt 0:01:47]} Bxh1 {[%emt 0:00:45]} 23. Rxh1 {[%emt 0:03:39]} Qe6 {[%emt 0:00:24]} 24. Qd1 {[%emt 0:07:07]} 0-1

[Event "Gibraltar Challengers A 2020"]
[Site "Caleta"]
[Date "2020.01.21"]
[Round "1.17"]
[White "De Abreu, Roberto N"]
[Black "Aura, Kristian"]
[Result "1-0"]
[ECO "E01"]
[WhiteElo "2154"]
[BlackElo "1928"]
[Annotator "ChessBase"]
[PlyCount "107"]
[EventDate "2020.01.20"]
[EventType "swiss"]
[EventCountry "GGB"]
[SourceTitle "playchess.com"]
[Source "ChessBase"]
[SourceQuality "1"]
[TimeControl "6600+10"]

1. d4 {[%emt 0:00:12]} d5 {[%emt 0:00:00]} 2. c4 {[%emt 0:00:02]} e6 {[%emt 0:00:02]} 3. Nf3 {[%emt 0:00:02]} c6 {[%emt 0:00:06]} 4. g3 {[%emt 0:00:04]} Nf6 {[%emt 0:02:36]} 5. Bg2 {[%emt 0:00:02]} Bd6 {[%emt 0:01:27]} 6. O-O {[%emt 0:00:02]} Nbd7 {[%emt 0:00:34]} 7. Nfd2 {[%emt 0:00:09]} O-O {[%emt 0:01:20]} 8. Nc3 {[%emt 0:00:02]} dxc4 {[%emt 0:14:35]} 9. Nxc4 {[%emt 0:00:08]} Bc7 {[%emt 0:00:18]} 10. e4 {[%emt 0:00:02]} e5 {[%emt 0:02:55]} 11. d5 {[%emt 0:00:04]} Nb6 {[%emt 0:05:39]} 12. b3 {[%emt 0:04:28]} Nxc4 {[%emt 0:20:01]} 13. bxc4 {[%emt 0:00:02]} Qe7 {[%emt 0:00:48]} 14. a4 {[%emt 0:08:43]} Bd6 {[%emt 0:01:21]} 15. h3 {[%emt 0:10:28]} a5 {[%emt 0:01:14]} 16. Be3 {[%emt 0:05:16]} Nd7 {[%emt 0:00:28]} 17. Qe2 {[%emt 0:06:46]} Nc5 {[%emt 0:01:12]} 18. Rab1 {[%emt 0:02:41]} Na6 {[%emt 0:04:35]} 19. f4 {[%emt 0:00:45]} Bb4 {[%emt 0:01:50]} 20. Na2 {[%emt 0:03:53]} Bc5 {[%emt 0:00:31]} 21. Nc1 {[%emt 0:00:32]} Bxe3+ {[%emt 0:14:27]} 22. Qxe3 {[%emt 0:00:01]} Qc5 {[%emt 0:10:04]} 23. Qxc5 {[%emt 0:27:17]} Nxc5 {[%emt 0:00:02]} 24. fxe5 {[%emt 0:00:05]} Re8 {[%emt 0:03:25]} 25. Kf2 {[%emt 0:00:36]} Rxe5 {[%emt 0:00:47]} 26. Ke3 {[%emt 0:00:01]} Re8 {[%emt 0:02:39]} 27. Kd4 {[%emt 0:00:38]} Nxa4 {[%emt 0:01:41]} 28. Rf2 {[%emt 0:03:41]} c5+ {[%emt 0:10:49]} 29. Kd3 {[%emt 0:00:02]} b6 {[%emt 0:03:05]} 30. Nb3 {[%emt 0:02:32]} g6 {[%emt 0:01:40]} 31. g4 {[%emt 0:00:18]} Ra7 {[%emt 0:00:33]} 32. Na1 {[%emt 0:02:24]} Rae7 {[%emt 0:00:20]} 33. Nc2 {[%emt 0:01:21]} Bd7 {[%emt 0:00:37]} 34. g5 {[%emt 0:08:49]} Re5 {[%emt 0:00:14]} 35. h4 {[%emt 0:00:02]} h6 {[%emt 0:00:02]} 36. gxh6 {[%emt 0:00:54]} f5 {[%emt 0:00:40]} 37. Ne3 {[%emt 0:16:34]} fxe4+ {[%emt 0:00:10]} 38. Kc2 {[%emt 0:00:01]} Rh5 {[%emt 0:00:40]} 39. Rf4 {[%emt 0:00:02]} Rxh6 {[%emt 0:01:23]} 40. Bxe4 {[%emt 0:01:03]} g5 {[%emt 0:00:21]} 41. Rg1 {[%emt 0:01:10]} g4 {[%emt 0:00:30]} 42. Nxg4 {[%emt 0:01:44]} Bxg4 {[%emt 0:00:31]} 43. Rfxg4+ {[%emt 0:00:04]} Kh8 {[%emt 0:00:00]} 44. Bg6 {[%emt 0:01:00]} Rb8 {[%emt 0:00:39]} 45. h5 {[%emt 0:00:40]} b5 {[%emt 0:00:10]} 46. cxb5 {[%emt 0:00:19]} Nb6 {[%emt 0:00:10]} 47. d6 {[%emt 0:00:23]} Nd7 {[%emt 0:00:16]} 48. Rg5 {[%emt 0:00:19]} Nf6 {[%emt 0:00:21]} 49. Rxc5 {[%emt 0:00:21]} Rd8 {[%emt 0:00:01]} 50. b6 {[%emt 0:00:28]} Nd7 {[%emt 0:00:09]} 51. Rb5 {[%emt 0:00:31]} a4 {[%emt 0:00:12]} 52. b7 {[%emt 0:00:13]} Kg7 {[%emt 0:00:05]} 53. Bf5+ {[%emt 0:00:12]} Kf6 {[%emt 0:00:10]} 54. Bxd7 {[%emt 0:00:02]} 1-0